[Event "*** SCC Grand Prix: Titled Tuesday Blitz"]
[Site "Chess.com"]
[Date "2020.07.07"]
[Round "9"]
[White "IMKarimIsmael"]
[Black "PavelShkapenko"]
[Result "0-1"]
[WhiteElo "2405"]
[BlackElo "2586"]
[TimeControl "180+1"]
[EndTime "11:46:03 PDT"]
[Termination "PavelShkapenko won by resignation"]

1. e4 {[%clk 0:03:00.9]} 1... c5 {[%clk 0:02:59.6]} 2. Nf3 {[%clk 0:03:00]} 2...
e6 {[%clk 0:03:00]} 3. c3 {[%clk 0:02:59.2]} 3... d5 {[%clk 0:02:56.7]} 4. exd5
{[%clk 0:02:58.6]} 4... exd5 {[%clk 0:02:57.3]} 5. d4 {[%clk 0:02:58.6]} 5...
Nc6 {[%clk 0:02:57.9]} 6. Be3 {[%clk 0:02:59.1]} 6... c4 {[%clk 0:02:57.8]} 7.
b3 {[%clk 0:02:59.6]} 7... cxb3 {[%clk 0:02:58.4]} 8. axb3 {[%clk 0:03:00.5]}
8... Bd6 {[%clk 0:02:58.9]} 9. Bd3 {[%clk 0:02:58.3]} 9... Nge7 {[%clk
0:02:59.4]} 10. Qc2 {[%clk 0:02:54.9]} 10... Bg4 {[%clk 0:02:59.1]} 11. Nbd2
{[%clk 0:02:53.8]} 11... Rc8 {[%clk 0:02:58.8]} 12. Qb1 {[%clk 0:02:44.2]} 12...
Bh5 {[%clk 0:02:58.5]} 13. O-O {[%clk 0:02:34.5]} 13... Bg6 {[%clk 0:02:58.2]}
14. b4 {[%clk 0:02:32.9]} 14... a6 {[%clk 0:02:57.7]} 15. b5 {[%clk 0:02:29.5]}
15... axb5 {[%clk 0:02:56.9]} 16. Qxb5 {[%clk 0:02:28.7]} 16... Bxd3 {[%clk
0:02:32.8]} 17. Qxd3 {[%clk 0:02:25.6]} 17... O-O {[%clk 0:02:33.3]} 18. Rab1
{[%clk 0:02:19]} 18... Na5 {[%clk 0:02:30.1]} 19. Rb5 {[%clk 0:01:59.5]} 19...
f6 {[%clk 0:01:58.4]} 20. Rfb1 {[%clk 0:01:58.1]} 20... Qc7 {[%clk 0:01:56]} 21.
g3 {[%clk 0:01:55.9]} 21... Rb8 {[%clk 0:01:44.7]} 22. Nb3 {[%clk 0:01:32]}
22... Nc4 {[%clk 0:01:28.9]} 23. Nc5 {[%clk 0:01:30.4]} 23... Bxc5 {[%clk
0:01:29]} 24. Rxc5 {[%clk 0:01:26.2]} 24... Qd7 {[%clk 0:01:28.1]} 25. Bf4
{[%clk 0:01:21.1]} 25... Rbc8 {[%clk 0:01:27.4]} 26. Rcb5 {[%clk 0:01:20.4]}
26... b6 {[%clk 0:01:26.5]} 27. Nd2 {[%clk 0:01:20.1]} 27... Na3 {[%clk
0:01:26.2]} 28. Rxb6 {[%clk 0:01:10.8]} 28... Nxb1 {[%clk 0:01:26.1]} 29. Rxb1
{[%clk 0:01:11.7]} 29... Qf5 {[%clk 0:01:24.9]} 30. Qe3 {[%clk 0:00:52.6]} 30...
Ng6 {[%clk 0:01:22.3]} 31. Rb5 {[%clk 0:00:33.8]} 31... Nxf4 {[%clk 0:01:15.5]}
32. Qxf4 {[%clk 0:00:28]} 32... Qxf4 {[%clk 0:01:06.6]} 33. gxf4 {[%clk
0:00:28.9]} 33... Rfd8 {[%clk 0:01:06.7]} 34. Nf1 {[%clk 0:00:18.2]} 34... Rxc3
{[%clk 0:01:04.5]} 35. Ne3 {[%clk 0:00:19.1]} 35... Rd3 {[%clk 0:01:02.5]} 36.
Rb7 {[%clk 0:00:14.3]} 36... Rxd4 {[%clk 0:00:52.1]} 37. Nf5 {[%clk 0:00:14.3]}
37... Rxf4 {[%clk 0:00:52.2]} 0-1

[Event "*** SCC Grand Prix: Titled Tuesday Blitz"]
[Site "Chess.com"]
[Date "2020.07.07"]
[Round "9"]
[White "Mazetovic"]
[Black "Chernobay_Artem"]
[Result "1-0"]
[WhiteElo "2748"]
[BlackElo "2625"]
[TimeControl "180+1"]
[EndTime "11:46:04 PDT"]
[Termination "Mazetovic won by resignation"]

1. e4 {[%clk 0:03:00.9]} 1... c5 {[%clk 0:02:47.7]} 2. Nf3 {[%clk 0:02:54.7]}
2... d6 {[%clk 0:02:47]} 3. c3 {[%clk 0:02:51.4]} 3... Nf6 {[%clk 0:02:44]} 4.
h3 {[%clk 0:02:51.4]} 4... g6 {[%clk 0:02:38.3]} 5. Bd3 {[%clk 0:02:49.7]} 5...
Bg7 {[%clk 0:02:35.2]} 6. Bc2 {[%clk 0:02:49.7]} 6... O-O {[%clk 0:02:31.1]} 7.
d4 {[%clk 0:02:49.8]} 7... Nc6 {[%clk 0:02:20.2]} 8. d5 {[%clk 0:02:47.4]} 8...
Nb8 {[%clk 0:02:15.4]} 9. a4 {[%clk 0:02:46.8]} 9... e6 {[%clk 0:02:11.8]} 10.
O-O {[%clk 0:02:46.3]} 10... exd5 {[%clk 0:02:09.4]} 11. exd5 {[%clk 0:02:45.9]}
11... Nbd7 {[%clk 0:02:08.1]} 12. Na3 {[%clk 0:02:33]} 12... Nb6 {[%clk
0:02:06.6]} 13. Bb3 {[%clk 0:02:24.5]} 13... Bf5 {[%clk 0:02:05.9]} 14. a5
{[%clk 0:02:23.6]} 14... Nc8 {[%clk 0:01:54.1]} 15. Nc4 {[%clk 0:02:20.3]} 15...
Be4 {[%clk 0:01:45.3]} 16. Bg5 {[%clk 0:02:10.7]} 16... h6 {[%clk 0:01:36.1]}
17. Bxf6 {[%clk 0:02:10.1]} 17... Qxf6 {[%clk 0:01:37]} 18. Ncd2 {[%clk
0:02:06.3]} 18... Bd3 {[%clk 0:01:28.2]} 19. Re1 {[%clk 0:02:05.2]} 19... Ne7
{[%clk 0:01:12.5]} 20. Ne4 {[%clk 0:02:04.2]} 20... Bxe4 {[%clk 0:01:12.9]} 21.
Rxe4 {[%clk 0:02:04.4]} 21... Nf5 {[%clk 0:01:09.5]} 22. Qe2 {[%clk 0:01:56.6]}
22... Qd8 {[%clk 0:01:05.1]} 23. a6 {[%clk 0:01:53.5]} 23... bxa6 {[%clk
0:01:03.2]} 24. Rxa6 {[%clk 0:01:47.6]} 24... Rb8 {[%clk 0:01:02.2]} 25. Ba4
{[%clk 0:01:46.6]} 25... h5 {[%clk 0:00:50.3]} 26. g3 {[%clk 0:01:37.6]} 26...
Qc7 {[%clk 0:00:47.1]} 27. Bc6 {[%clk 0:01:18.7]} 27... Rb6 {[%clk 0:00:45.1]}
28. Ra2 {[%clk 0:01:15]} 28... Qb8 {[%clk 0:00:44.1]} 29. g4 {[%clk 0:01:10.1]}
29... hxg4 {[%clk 0:00:43.5]} 30. hxg4 {[%clk 0:01:10.1]} 30... Nh6 {[%clk
0:00:43.8]} 31. Kg2 {[%clk 0:01:02.6]} 31... f5 {[%clk 0:00:30.2]} 32. Re7
{[%clk 0:00:51]} 32... a6 {[%clk 0:00:07]} 33. Qe6+ {[%clk 0:00:46.6]} 33... Nf7
{[%clk 0:00:03.6]} 34. Ng5 {[%clk 0:00:43.2]} 1-0

[Event "*** SCC Grand Prix: Titled Tuesday Blitz"]
[Site "Chess.com"]
[Date "2020.07.07"]
[Round "9"]
[White "CzechmVIII"]
[Black "2008king"]
[Result "1/2-1/2"]
[WhiteElo "2187"]
[BlackElo "2246"]
[TimeControl "180+1"]
[EndTime "11:46:06 PDT"]
[Termination "Game drawn by repetition"]

1. e4 {[%clk 0:03:00.9]} 1... e5 {[%clk 0:02:59.2]} 2. Nf3 {[%clk 0:03:00.9]}
2... Nc6 {[%clk 0:02:58.3]} 3. Bb5 {[%clk 0:03:00.9]} 3... a6 {[%clk 0:02:58.1]}
4. Ba4 {[%clk 0:03:00.5]} 4... Nf6 {[%clk 0:02:57.5]} 5. O-O {[%clk 0:03:00.7]}
5... b5 {[%clk 0:02:52.9]} 6. Bb3 {[%clk 0:03:00.1]} 6... Bb7 {[%clk 0:02:53.5]}
7. d3 {[%clk 0:02:56.2]} 7... Be7 {[%clk 0:02:51.2]} 8. a3 {[%clk 0:02:47.6]}
8... d6 {[%clk 0:02:50]} 9. Nc3 {[%clk 0:02:46.3]} 9... Na5 {[%clk 0:02:44.1]}
10. Ba2 {[%clk 0:02:43.4]} 10... c5 {[%clk 0:02:42]} 11. Ne2 {[%clk 0:02:39.3]}
11... O-O {[%clk 0:02:36.8]} 12. Ng3 {[%clk 0:02:39]} 12... g6 {[%clk
0:02:35.1]} 13. Bg5 {[%clk 0:02:20.7]} 13... Re8 {[%clk 0:01:13.8]} 14. h3
{[%clk 0:02:05]} 14... Nd7 {[%clk 0:01:08.5]} 15. Bd2 {[%clk 0:01:56.9]} 15...
Nc6 {[%clk 0:01:06.8]} 16. c3 {[%clk 0:01:54.7]} 16... Bf8 {[%clk 0:01:06.2]}
17. Ng5 {[%clk 0:01:48.1]} 17... Re7 {[%clk 0:00:59.4]} 18. f4 {[%clk
0:01:36.3]} 18... exf4 {[%clk 0:00:38.6]} 19. Bxf4 {[%clk 0:01:25.6]} 19... Nde5
{[%clk 0:00:37.7]} 20. d4 {[%clk 0:01:20.9]} 20... cxd4 {[%clk 0:00:26.7]} 21.
cxd4 {[%clk 0:01:21]} 21... Qb6 {[%clk 0:00:26.2]} 22. Bxe5 {[%clk 0:01:06.7]}
22... dxe5 {[%clk 0:00:23.9]} 23. Nxf7 {[%clk 0:00:56.6]} 23... Kg7 {[%clk
0:00:20.8]} 24. Ng5 {[%clk 0:00:49.3]} 24... Qxd4+ {[%clk 0:00:11.8]} 25. Kh2
{[%clk 0:00:49.5]} 25... Qxd1 {[%clk 0:00:11.6]} 26. Raxd1 {[%clk 0:00:49.7]}
26... Rae8 {[%clk 0:00:11.5]} 27. Rd6 {[%clk 0:00:36.4]} 27... Nd4 {[%clk
0:00:11]} 28. Rb6 {[%clk 0:00:32.2]} 28... h6 {[%clk 0:00:10.5]} 29. Ne6+ {[%clk
0:00:27.3]} 29... Nxe6 {[%clk 0:00:10.3]} 30. Bxe6 {[%clk 0:00:27.5]} 30... Rxe6
{[%clk 0:00:10.1]} 31. Rxb7+ {[%clk 0:00:28]} 31... R6e7 {[%clk 0:00:10.7]} 32.
Rb6 {[%clk 0:00:25.9]} 32... Re6 {[%clk 0:00:09.9]} 33. Rb7+ {[%clk 0:00:25.3]}
33... R6e7 {[%clk 0:00:09.8]} 34. Rb6 {[%clk 0:00:25.1]} 34... Re6 {[%clk
0:00:10.3]} 35. Rb7+ {[%clk 0:00:22]} 1/2-1/2

[Event "*** SCC Grand Prix: Titled Tuesday Blitz"]
[Site "Chess.com"]
[Date "2020.07.07"]
[Round "9"]
[White "SiddharthGMJagadeesh"]
[Black "Cxrjs"]
[Result "1-0"]
[WhiteElo "2436"]
[BlackElo "2280"]
[TimeControl "180+1"]
[EndTime "11:46:08 PDT"]
[Termination "SiddharthGMJagadeesh won on time"]

1. d4 {[%clk 0:03:00.9]} 1... Nf6 {[%clk 0:00:41.8]} 2. Nc3 {[%clk 0:01:01.4]}
2... d5 {[%clk 0:00:41.3]} 3. Bf4 {[%clk 0:01:01.5]} 3... g6 {[%clk 0:00:40.9]}
4. e3 {[%clk 0:01:00.8]} 4... Bg7 {[%clk 0:00:41.1]} 5. h4 {[%clk 0:01:01.3]}
5... c5 {[%clk 0:00:38.1]} 6. dxc5 {[%clk 0:00:56.1]} 6... Nc6 {[%clk
0:00:35.6]} 7. Nf3 {[%clk 0:00:54.4]} 7... Qa5 {[%clk 0:00:33.8]} 8. Nd2 {[%clk
0:00:52.3]} 8... Qxc5 {[%clk 0:00:29.5]} 9. Nb3 {[%clk 0:00:52.2]} 9... Qb4
{[%clk 0:00:18.1]} 10. a3 {[%clk 0:00:48.7]} 10... Qb6 {[%clk 0:00:17.5]} 11. h5
{[%clk 0:00:48.5]} 11... Nxh5 {[%clk 0:00:14.6]} 12. Rxh5 {[%clk 0:00:46]} 12...
gxh5 {[%clk 0:00:14.6]} 13. Nxd5 {[%clk 0:00:46.3]} 13... Qd8 {[%clk 0:00:09.7]}
14. Nc7+ {[%clk 0:00:46.6]} 14... Kf8 {[%clk 0:00:10]} 15. Qxd8+ {[%clk
0:00:46.9]} 15... Nxd8 {[%clk 0:00:10.9]} 16. Nxa8 {[%clk 0:00:47.8]} 16... Ne6
{[%clk 0:00:11.4]} 17. O-O-O {[%clk 0:00:46.2]} 17... Bf6 {[%clk 0:00:05.6]} 18.
Bh6+ {[%clk 0:00:45.4]} 18... Bg7 {[%clk 0:00:01.8]} 19. Bxg7+ {[%clk
0:00:44.5]} 19... Kxg7 {[%clk 0:00:02.7]} 20. Bc4 {[%clk 0:00:43.7]} 20... Ng5
{[%clk 0:00:01.1]} 21. Nc7 {[%clk 0:00:42.7]} 21... Bg4 {[%clk 0:00:01.4]} 22.
f3 {[%clk 0:00:42.5]} 22... Rc8 {[%clk 0:00:01.4]} 23. fxg4 {[%clk 0:00:39.4]}
23... Rxc7 {[%clk 0:00:02.1]} 24. Be2 {[%clk 0:00:40.1]} 24... hxg4 {[%clk
0:00:01.7]} 25. Bxg4 {[%clk 0:00:41]} 25... e6 {[%clk 0:00:02]} 26. Bf3 {[%clk
0:00:38.7]} 26... b6 {[%clk 0:00:01]} 27. Nd4 {[%clk 0:00:38.2]} 27... a5 {[%clk
0:00:01.9]} 28. Nb5 {[%clk 0:00:38.2]} 28... Rc5 {[%clk 0:00:02.4]} 29. Nd6
{[%clk 0:00:38.2]} 29... Kf6 {[%clk 0:00:02.2]} 30. Ne4+ {[%clk 0:00:37.9]}
30... Nxe4 {[%clk 0:00:02.4]} 31. Bxe4 {[%clk 0:00:38.8]} 31... h5 {[%clk
0:00:02.7]} 32. Rf1+ {[%clk 0:00:38.1]} 32... Ke5 {[%clk 0:00:01.7]} 33. Bf3
{[%clk 0:00:38.3]} 33... Kd6 {[%clk 0:00:01.2]} 34. Rh1 {[%clk 0:00:38.3]} 1-0

[Event "*** SCC Grand Prix: Titled Tuesday Blitz"]
[Site "Chess.com"]
[Date "2020.07.07"]
[Round "9"]
[White "124chess"]
[Black "GelmanAlexander"]
[Result "0-1"]
[WhiteElo "2686"]
[BlackElo "2559"]
[TimeControl "180+1"]
[EndTime "11:46:09 PDT"]
[Termination "GelmanAlexander won by resignation"]

1. d4 {[%clk 0:03:00.9]} 1... Nf6 {[%clk 0:02:58.9]} 2. c4 {[%clk 0:03:00.8]}
2... c5 {[%clk 0:02:59.2]} 3. d5 {[%clk 0:02:59.9]} 3... b5 {[%clk 0:02:59.6]}
4. cxb5 {[%clk 0:02:59]} 4... a6 {[%clk 0:02:59.7]} 5. f3 {[%clk 0:02:59.5]}
5... e6 {[%clk 0:02:58.5]} 6. e4 {[%clk 0:02:59]} 6... exd5 {[%clk 0:02:57.5]}
7. e5 {[%clk 0:02:59.4]} 7... Qe7 {[%clk 0:02:57.3]} 8. Qe2 {[%clk 0:02:56.6]}
8... Ng8 {[%clk 0:02:57.2]} 9. Nh3 {[%clk 0:02:47.6]} 9... Bb7 {[%clk
0:02:52.4]} 10. Bg5 {[%clk 0:02:46.1]} 10... f6 {[%clk 0:02:41]} 11. exf6 {[%clk
0:02:47]} 11... Nxf6 {[%clk 0:02:36.7]} 12. Na3 {[%clk 0:02:36.7]} 12... c4
{[%clk 0:02:30.5]} 13. O-O-O {[%clk 0:02:25.7]} 13... Qxe2 {[%clk 0:02:24.5]}
14. Bxe2 {[%clk 0:02:26.6]} 14... Bxa3 {[%clk 0:02:24.6]} 15. bxa3 {[%clk
0:02:26.4]} 15... axb5 {[%clk 0:02:24.5]} 16. Rhe1 {[%clk 0:02:23.1]} 16... O-O
{[%clk 0:02:20.3]} 17. Kb2 {[%clk 0:02:20.1]} 17... Na6 {[%clk 0:02:17.7]} 18.
Bd2 {[%clk 0:02:19.1]} 18... Nc5 {[%clk 0:02:09.5]} 19. Bb4 {[%clk 0:02:18.9]}
19... Na4+ {[%clk 0:02:09.8]} 20. Kc1 {[%clk 0:02:17.6]} 20... Rfe8 {[%clk
0:02:10.5]} 21. Nf4 {[%clk 0:02:12.2]} 21... g5 {[%clk 0:02:01.3]} 22. Nh3
{[%clk 0:02:11.8]} 22... h6 {[%clk 0:02:00.5]} 23. g4 {[%clk 0:02:07.7]} 23...
Re3 {[%clk 0:01:56.4]} 24. Ng1 {[%clk 0:01:45.3]} 24... Rae8 {[%clk 0:01:54.9]}
25. h4 {[%clk 0:01:45.5]} 25... gxh4 {[%clk 0:01:52.2]} 26. Rd4 {[%clk
0:01:30.7]} 26... Nc3 {[%clk 0:01:46.6]} 27. Kd2 {[%clk 0:01:25.3]} 27... Nxa2
{[%clk 0:01:29.5]} 28. Bd6 {[%clk 0:01:25.1]} 28... Nc3 {[%clk 0:01:18.5]} 29.
Bf4 {[%clk 0:01:24.4]} 29... Nxe2 {[%clk 0:01:18.8]} 30. Bxe3 {[%clk 0:01:17.2]}
30... Nxd4 {[%clk 0:01:17.9]} 31. Bxd4 {[%clk 0:01:18.1]} 31... Rxe1 {[%clk
0:01:17.6]} 32. Kxe1 {[%clk 0:01:19]} 32... Kf7 {[%clk 0:01:17]} 33. Nh3 {[%clk
0:01:17.6]} 33... d6 {[%clk 0:01:06.5]} 34. Nf4 {[%clk 0:01:17.1]} 34... Bc8
{[%clk 0:01:03.1]} 35. Kf2 {[%clk 0:01:16.1]} 35... Be6 {[%clk 0:00:43]} 36. Kg2
{[%clk 0:01:15.1]} 36... Nh7 {[%clk 0:00:38.6]} 37. Ne2 {[%clk 0:01:10.9]} 37...
Ng5 {[%clk 0:00:37.6]} 38. Nc3 {[%clk 0:01:11]} 38... h3+ {[%clk 0:00:33.8]} 39.
Kh1 {[%clk 0:01:01.3]} 39... Nxf3 {[%clk 0:00:33]} 40. Nxb5 {[%clk 0:01:02]}
40... Bd7 {[%clk 0:00:26.2]} 41. Nxd6+ {[%clk 0:01:00.9]} 41... Ke6 {[%clk
0:00:25.9]} 42. Nf5 {[%clk 0:01:01.1]} 42... h5 {[%clk 0:00:22.4]} 43. Bc3
{[%clk 0:00:50.2]} 43... hxg4 {[%clk 0:00:21.8]} 44. Nd4+ {[%clk 0:00:50.9]}
44... Nxd4 {[%clk 0:00:21.6]} 45. Bxd4 {[%clk 0:00:51.8]} 45... Kf5 {[%clk
0:00:20.7]} 46. Kh2 {[%clk 0:00:51.8]} 46... Ke4 {[%clk 0:00:21.1]} 0-1

[Event "*** SCC Grand Prix: Titled Tuesday Blitz"]
[Site "Chess.com"]
[Date "2020.07.07"]
[Round "9"]
[White "tsvet2005"]
[Black "JesseKraai"]
[Result "1/2-1/2"]
[WhiteElo "2631"]
[BlackElo "2496"]
[TimeControl "180+1"]
[EndTime "11:46:11 PDT"]
[Termination "Game drawn by repetition"]

1. d4 {[%clk 0:03:00.9]} 1... e6 {[%clk 0:02:59.5]} 2. c4 {[%clk 0:03:00.7]}
2... Nf6 {[%clk 0:02:58]} 3. Nc3 {[%clk 0:03:01]} 3... Bb4 {[%clk 0:02:57.7]} 4.
f3 {[%clk 0:03:01.2]} 4... O-O {[%clk 0:02:51.4]} 5. a3 {[%clk 0:03:01.1]} 5...
Bxc3+ {[%clk 0:02:49.6]} 6. bxc3 {[%clk 0:03:02]} 6... Nc6 {[%clk 0:02:45.4]} 7.
e4 {[%clk 0:03:00.5]} 7... e5 {[%clk 0:02:45.3]} 8. d5 {[%clk 0:02:59.5]} 8...
Ne7 {[%clk 0:02:44.9]} 9. Be3 {[%clk 0:02:52.9]} 9... d6 {[%clk 0:02:44.4]} 10.
c5 {[%clk 0:02:51]} 10... Ng6 {[%clk 0:02:43.5]} 11. cxd6 {[%clk 0:02:43.1]}
11... cxd6 {[%clk 0:02:43]} 12. Bd3 {[%clk 0:02:43.6]} 12... Bd7 {[%clk
0:02:41.5]} 13. Ne2 {[%clk 0:02:42.6]} 13... Rc8 {[%clk 0:02:41.3]} 14. O-O
{[%clk 0:02:40.7]} 14... Nh5 {[%clk 0:02:40.6]} 15. Qb3 {[%clk 0:02:35.3]} 15...
Nhf4 {[%clk 0:02:31.2]} 16. Nxf4 {[%clk 0:02:31]} 16... Nxf4 {[%clk 0:02:30.5]}
17. Bxf4 {[%clk 0:02:06.3]} 17... exf4 {[%clk 0:02:29.9]} 18. Rfc1 {[%clk
0:02:07.2]} 18... b6 {[%clk 0:02:24.9]} 19. a4 {[%clk 0:02:04.8]} 19... Rc5
{[%clk 0:02:24.6]} 20. Bb5 {[%clk 0:01:53.3]} 20... Qc7 {[%clk 0:02:11.8]} 21.
Bxd7 {[%clk 0:01:28.6]} 21... Qxd7 {[%clk 0:02:11.6]} 22. c4 {[%clk 0:01:29.5]}
22... Rfc8 {[%clk 0:02:08]} 23. Rc3 {[%clk 0:01:29.7]} 23... h6 {[%clk
0:02:06.5]} 24. Rac1 {[%clk 0:01:29.1]} 24... Ra5 {[%clk 0:02:03.9]} 25. Ra1
{[%clk 0:01:27.4]} 25... Qc7 {[%clk 0:02:03.2]} 26. Qc2 {[%clk 0:01:23]} 26...
Rc5 {[%clk 0:01:56.2]} 27. Rc1 {[%clk 0:01:21.8]} 27... Qe7 {[%clk 0:01:54.9]}
28. Qd2 {[%clk 0:01:20.5]} 28... Qe5 {[%clk 0:01:54.9]} 29. R3c2 {[%clk
0:01:18.6]} 29... Kh7 {[%clk 0:01:52.7]} 30. Kf2 {[%clk 0:01:17.3]} 30... a6
{[%clk 0:01:43.8]} 31. g3 {[%clk 0:01:15.6]} 31... fxg3+ {[%clk 0:01:35.7]} 32.
hxg3 {[%clk 0:01:16.5]} 32... Qe8 {[%clk 0:01:25.9]} 33. Qb4 {[%clk 0:01:02.4]}
33... b5 {[%clk 0:01:23.5]} 34. axb5 {[%clk 0:01:03.3]} 34... axb5 {[%clk
0:01:23.6]} 35. Qb3 {[%clk 0:01:03.1]} 35... bxc4 {[%clk 0:01:13.4]} 36. Rxc4
{[%clk 0:01:04]} 36... Rb8 {[%clk 0:01:13.3]} 37. Qc2 {[%clk 0:00:53.8]} 37...
Rxc4 {[%clk 0:01:10.7]} 38. Qxc4 {[%clk 0:00:54.7]} 38... Rb2+ {[%clk
0:01:07.4]} 39. Rc2 {[%clk 0:00:54.9]} 39... Qb8 {[%clk 0:01:07.2]} 40. Kg2
{[%clk 0:00:37.3]} 40... h5 {[%clk 0:01:04.7]} 41. Qd3 {[%clk 0:00:34.7]} 41...
g6 {[%clk 0:01:03.2]} 42. Rxb2 {[%clk 0:00:31.2]} 42... Qxb2+ {[%clk 0:01:02.2]}
43. Kg1 {[%clk 0:00:30]} 43... Qc1+ {[%clk 0:01:01.6]} 44. Kg2 {[%clk 0:00:30]}
44... Qb2+ {[%clk 0:01:01.6]} 45. Kg1 {[%clk 0:00:27.6]} 45... Kg7 {[%clk
0:01:01.1]} 46. Qe3 {[%clk 0:00:25.4]} 46... Qc2 {[%clk 0:00:55.9]} 47. Qf4
{[%clk 0:00:24.5]} 47... Qd1+ {[%clk 0:00:50.9]} 48. Kg2 {[%clk 0:00:23.7]}
48... Qe2+ {[%clk 0:00:50.9]} 49. Kg1 {[%clk 0:00:23.8]} 49... Qe1+ {[%clk
0:00:51]} 50. Kg2 {[%clk 0:00:23.9]} 50... Qe2+ {[%clk 0:00:51.3]} 51. Kg1
{[%clk 0:00:23.5]} 51... Qe1+ {[%clk 0:00:51.6]} 52. Kg2 {[%clk 0:00:23]} 52...
Qe2+ {[%clk 0:00:51.9]} 1/2-1/2

[Event "*** SCC Grand Prix: Titled Tuesday Blitz"]
[Site "Chess.com"]
[Date "2020.07.07"]
[Round "9"]
[White "MasterKroket"]
[Black "wild_cat99"]
[Result "1/2-1/2"]
[WhiteElo "2423"]
[BlackElo "2600"]
[TimeControl "180+1"]
[EndTime "11:46:12 PDT"]
[Termination "Game drawn by agreement"]

1. d4 {[%clk 0:02:57.8]} 1... Nf6 {[%clk 0:02:59.8]} 2. c4 {[%clk 0:02:56.8]}
2... e6 {[%clk 0:02:59.4]} 3. Nf3 {[%clk 0:02:55.2]} 3... d5 {[%clk 0:02:59]} 4.
Nc3 {[%clk 0:02:54.4]} 4... a6 {[%clk 0:02:59]} 5. cxd5 {[%clk 0:02:53]} 5...
exd5 {[%clk 0:02:57.7]} 6. Bg5 {[%clk 0:02:53.4]} 6... Be7 {[%clk 0:02:57.2]} 7.
e3 {[%clk 0:02:53.3]} 7... O-O {[%clk 0:02:57.5]} 8. Qc2 {[%clk 0:02:52.9]} 8...
Nbd7 {[%clk 0:02:56.6]} 9. Bd3 {[%clk 0:02:52.2]} 9... Re8 {[%clk 0:02:55.6]}
10. O-O {[%clk 0:02:51.5]} 10... Nf8 {[%clk 0:02:55.6]} 11. Ne5 {[%clk
0:02:38.6]} 11... Be6 {[%clk 0:02:52.6]} 12. Rac1 {[%clk 0:02:28.9]} 12... c6
{[%clk 0:02:52.5]} 13. Ne2 {[%clk 0:02:26.5]} 13... h6 {[%clk 0:02:43.3]} 14.
Bh4 {[%clk 0:02:23.4]} 14... N6d7 {[%clk 0:02:42.6]} 15. Bxe7 {[%clk 0:02:20.3]}
15... Qxe7 {[%clk 0:02:43.5]} 16. f4 {[%clk 0:02:17.8]} 16... Nxe5 {[%clk
0:02:24.3]} 17. fxe5 {[%clk 0:02:15.7]} 17... g6 {[%clk 0:02:08.6]} 18. Nf4
{[%clk 0:02:12.1]} 18... Nh7 {[%clk 0:01:57]} 19. Rf2 {[%clk 0:01:59.3]} 19...
Qg5 {[%clk 0:01:32.3]} 20. Rcf1 {[%clk 0:01:57.9]} 20... Bf5 {[%clk 0:01:27.3]}
21. Bxf5 {[%clk 0:01:56]} 21... Qxf5 {[%clk 0:01:28]} 22. Qxf5 {[%clk
0:01:53.3]} 22... gxf5 {[%clk 0:01:28.9]} 23. h4 {[%clk 0:01:48.3]} 23... f6
{[%clk 0:01:27.1]} 24. Nd3 {[%clk 0:01:48.4]} 24... fxe5 {[%clk 0:01:25.6]} 25.
Nxe5 {[%clk 0:01:48.3]} 25... Rf8 {[%clk 0:01:16.9]} 26. Rxf5 {[%clk 0:01:48]}
26... Rxf5 {[%clk 0:01:16]} 27. Rxf5 {[%clk 0:01:48.9]} 27... Rf8 {[%clk
0:01:15.3]} 28. Rxf8+ {[%clk 0:01:47.2]} 28... Kxf8 {[%clk 0:01:16.2]} 29. Nd7+
{[%clk 0:01:47.9]} 29... Ke7 {[%clk 0:01:15.4]} 30. Nc5 {[%clk 0:01:48.5]} 30...
b6 {[%clk 0:01:12]} 31. Nxa6 {[%clk 0:01:48.1]} 31... Kd6 {[%clk 0:01:12.2]} 32.
Nb4 {[%clk 0:01:43.4]} 32... c5 {[%clk 0:01:12.4]} 33. dxc5+ {[%clk 0:01:40.1]}
33... bxc5 {[%clk 0:01:13.3]} 34. Nd3 {[%clk 0:01:34.5]} 34... c4 {[%clk
0:01:13.2]} 35. Ne1 {[%clk 0:01:28.8]} 35... Nf6 {[%clk 0:01:11.8]} 36. Kf2
{[%clk 0:01:28.3]} 36... c3 {[%clk 0:01:03.7]} 37. bxc3 {[%clk 0:01:22.2]} 37...
Ne4+ {[%clk 0:01:03.9]} 38. Kf3 {[%clk 0:01:21.7]} 38... Nxc3 {[%clk 0:01:04.8]}
39. Kg4 {[%clk 0:01:20.1]} 39... Nd1 {[%clk 0:00:58.4]} 40. Nc2 {[%clk
0:01:19.9]} 40... Ke5 {[%clk 0:00:54.3]} 41. Kh5 {[%clk 0:01:19.5]} 41... Ke4
{[%clk 0:00:53]} 42. g4 {[%clk 0:01:13.3]} 42... Nxe3 {[%clk 0:00:51.3]} 43.
Nxe3 {[%clk 0:00:55.7]} 43... Kxe3 {[%clk 0:00:52.2]} 44. g5 {[%clk 0:00:56.6]}
44... hxg5 {[%clk 0:00:43.7]} 45. hxg5 {[%clk 0:00:57.3]} 45... d4 {[%clk
0:00:42.4]} 46. g6 {[%clk 0:00:58.2]} 46... d3 {[%clk 0:00:42.1]} 47. g7 {[%clk
0:00:59.1]} 47... d2 {[%clk 0:00:42]} 48. g8=Q {[%clk 0:01:00]} 48... d1=Q+
{[%clk 0:00:41.7]} 49. Qg4 {[%clk 0:00:30.1]} 1/2-1/2